Cogmind - Beta 10.2 @@@ ROGUE MODE // 2021.06.30 @ 21:26:26 Player: HabNab Result: Destroyed by G-34 Mercenary with Small Laser Performance ------------- Evolutions (1) 500 Regions Visited (2) 400 Robots Destroyed (21) 105 Value Destroyed (360) 360 Prototype IDs (4) 80 Alien Tech Used (0) 0 Bonus (0) 0 TOTAL SCORE: 1445 Bonus ------- None Cogmind --------- Core Integrity 0/400 Matter 300/300 Energy 100/100 System Corruption 0% Temperature Cool (6) Movement Core (150) Ox2 Location -9/Materials Parts ------- > --- POWER (1) -------- (None) > --- PROPULSION (2) --- (None) > --- UTILITY (4) ------ Medium Storage Unit Improved Sensor Array > --- WEAPON (2) ------- (None) > --- INVENTORY (8) ---- Light Treads Improved Heat Sink Terrain Scanner Terrain Scan Processor Improved EM Shotgun Improved Medium Laser Datajack Flail Peak State ------------ > --- POWER ------------ Improved Ion Engine > --- PROPULSION ------- Wheel Wheel > --- UTILITY ---------- Medium Storage Unit Structural Scanner Improved Sensor Array Improved Terrain Scanner > --- WEAPON ----------- Improved EM Shotgun Improved Medium Laser > --- INVENTORY -------- Light Treads Improved Heat Sink Terrain Scanner Terrain Scan Processor Improved Medium Laser Improved Medium Laser Datajack Flail [Rating: 17] Favorites ----------- Power Ion Engine Engine Ion Engine Propulsion Compact Wheel Wheel Compact Wheel Utility Small Storage Unit Device Structural Scanner Storage Small Storage Unit Processor Targeting Computer Weapon EM Pulse Gun Energy Gun EM Pulse Gun Ballistic Gun Assault Rifle Impact Weapon Flail Build | -11 -10 -9 ------- Run | Scr Mat Mat Slots Evolved 2 | . . 2 Power . | . . . Propulsion . | . . . Utility 2 | . . 2 Weapon . | . . . Parts Attached 23 | 6 3 14 Power 3 | 1 1 1 Engine 3 | 1 1 1 Core . | . . . Reactor . | . . . Propulsion 5 | 2 . 3 Treads . | . . . Leg . | . . . Wheel 5 | 2 . 3 Hover . | . . . Flight . | . . . Utility 7 | 1 1 5 Device 4 | . . 4 Storage 2 | 1 . 1 Processor 1 | . 1 . Hackware . | . . . Protection . | . . . Artifact . | . . . Weapon 8 | 2 1 5 Energy Gun 5 | 1 . 4 Energy Cannon . | . . . Ballistic Gun 2 | 1 1 . Ballistic Cannon . | . . . Launcher . | . . . Special Weapon . | . . . Impact Weapon 1 | . . 1 Slashing Weapon . | . . . Piercing Weapon . | . . . Special Melee Weapon . | . . . Unidentified Prototypes . | . . . Parts Lost 12 | . . 12 Power 2 | . . 2 Propulsion 4 | . . 4 Utility 2 | . . 2 Weapon 4 | . . 4 Highest Loss Streak 7 | . . 7 Average Slot Usage (%) 91 | . 95 89 Engine 10 | . 13 9 Wheel 20 | . 28 18 Device 18 | . . 24 Storage 11 | . 14 11 Processor 8 | . 11 7 Energy Gun 11 | . 14 10 Ballistic Gun 4 | . 13 1 Impact Weapon 4 | . . 6 Naked Turns . | . . . Heaviest Build 24 | 13 13 24 Greatest Support 32 | 32 32 32 Greatest Overweight (x) 1 | . . 1 Average Overweight (x) . | . . . Largest Inventory Capacity 8 | 6 6 8 Average Capacity 6 | 5 6 6 Most Carried 8 | 2 6 8 Average Carried 5 | 1 3 6 Final Capacity 8 | 6 6 8 Final Carried 8 | 2 6 8 Class Distribution -------------------- 78% | Mutant 9% | Assassin 8% | Scavenger-Skirmisher Dominant Class ---------------- Mutant | -10/Materials Mutant | -9/Materials Resources | -11 -10 -9 ----------- Run | Scr Mat Mat Matter Collected 448 | 260 54 134 Remotely . | . . . Salvage Created 879 | . 183 696 Parts 45 | . 9 36 Haulers Intercepted 2 | . . 2 Recyclers Shooed . | . . . Parts Field Recycled . | . . . Retrieved Matter . | . . . Parts Self-Destructed . | . . . Prevented . | . . . Kills | -11 -10 -9 ------- Run | Scr Mat Mat Combat Hostiles Destroyed 12 | . 2 10 Guns 7 | . 2 5 Classes Destroyed 8 | . 3 5 Worker 1 | . . 1 Builder 1 | . 1 . Hauler 2 | . . 2 Recycler 4 | . 1 3 Watcher 1 | . . 1 Swarmer 6 | . . 6 Grunt 3 | . 2 1 Sentry 3 | . . 3 Best Kill Streak 4 | . 4 4 Combat Bots Only 3 | . 2 3 Max Kills in Single Turn 1 | . 1 1 Gunslinging . | . . . Exploded . | . . . Melee . | . . . Uniques/NPCs Destroyed . | . . . Combat | -11 -10 -9 -------- Run | Scr Mat Mat Damage Taken 1082 | . 10 1072 Core 417 | . 10 407 Absorbed by Shields . | . . . Core Remaining (%) 98 | 100 96 . Volleys Fired 22 | . 8 14 Largest 2 | . 2 2 Hottest 112 | . 60 112 Shots Fired 44 | . 16 28 Gun 44 | . 16 28 Cannon . | . . . Launcher . | . . . Special . | . . . Kinetic 11 | . 8 3 Thermal 18 | . . 18 Explosive . | . . . Electromagnetic 15 | . 8 7 Robot Hit Streak 8 | . 7 8 Robot Miss Streak 5 | . 1 5 Penetration Max . | . . . Secondary Targets 1 | . . 1 Max Gunslinging Chain 1 | . . 1 Shots Hit Robots 48 | . 11 37 Core Hits 15 | . 6 9 Critical Hits . | . . . Critical Kills . | . . . Critical Parts Destroyed . | . . . Melee Attacks 31 | . . 31 Impact 31 | . . 31 Slashing . | . . . Piercing . | . . . Sneak Attacks 5 | . . 5 Combat Hostiles . | . . . Follow-up Attacks . | . . . Damage Inflicted 1165 | . 186 979 Guns 390 | . 186 204 Cannons . | . . . Explosions . | . . . Melee 775 | . . 775 Ramming . | . . . Kinetic 90 | . 56 34 Thermal 115 | . . 115 Explosive . | . . . Electromagnetic 185 | . 130 55 Impact 775 | . . 775 Slashing . | . . . Piercing . | . . . Highest Corruption . | . . . Average Corruption . | . . . Corruption Purged . | . . . Overload Shots . | . . . Overflow Damage 185 | . . 185 Projectiles . | . . . Explosions . | . . . Melee 185 | . . 185 Knockbacks 2 | . . 2 Impact 2 | . . 2 Kinetic . | . . . Secondary . | . . . Self-Inflicted Damage . | . . . Shots . | . . . Rammed . | . . . Targets Rammed . | . . . Kicked . | . . . Crushed . | . . . Highest Temperature 214 | . 6 214 Average Temperature 62 | . 6 65 Received Heat Transfer 219 | . 6 213 Effects 3 | . . 3 Interference 3 | . . 3 Siege Activations . | . . . Robots Corrupted . | . . . Combat Hostiles . | . . . Parts Fried 6 | . . 6 Impact Corruptions 11 | . . 11 Robots Melted . | . . . Combat Hostiles . | . . . Parts Melted . | . . . Heat Transferred 259 | . . 259 Parts Sabotaged . | . . . Parts Stolen . | . . . Parts Stripped . | . . . Power Chain Reactions . | . . . Missiles Intercepted . | . . . Alert | -11 -10 -9 ------- Run | Scr Mat Mat Peak Influence 304 | . 90 304 Initial . | . . . Average 117 | . 26 157 Maximum Alert Level 1 | . . 1 Low Security (%) 75 | 100 100 65 Level 1 24 | . . 34 Level 2 . | . . . Level 3 . | . . . Level 4 . | . . . Level 5 . | . . . High Security . | . . . Max Security . | . . . Squads Dispatched 1 | . . 1 Investigation 1 | . . 1 Extermination . | . . . Reinforcement . | . . . Assault . | . . . Garrison . | . . . Intercept . | . . . Construction Impeded . | . . . Haulers Reinforced . | . . . Stealth | -11 -10 -9 --------- Run | Scr Mat Mat Distress Signals 1 | . . 1 Communications Jammed . | . . . Distress Signals . | . . . Times Spotted 24 | . 4 20 Peak Tracking Total 9 | . 2 9 Tactical Retreats 2 | . . 2 Traps | -11 -10 -9 ------- Run | Scr Mat Mat Traps Triggered 1 | . 1 . Indirectly . | . . . Trap Hack Attempts . | . . . Triggered . | . . . Disarmed . | . . . Reprogrammed . | . . . Reused . | . . . Traps Extracted . | . . . Installed . | . . . Triggered . | . . . Machines | -11 -10 -9 ---------- Run | Scr Mat Mat Machines Disabled . | . . . Max in Single Turn . | . . . Machines Sabotaged . | . . . Garrisons Compromised . | . . . Overloaded Fab Kills . | . . . Fab Network Shutdowns . | . . . Hacking | -11 -10 -9 --------- Run | Scr Mat Mat Machines Accessed 6 | . 3 3 Terminals 6 | . 3 3 Fabricators . | . . . Repair Stations . | . . . Recycling Units . | . . . Scanalyzers . | . . . Garrison Access . | . . . Total Hacks 24 | . 12 12 Successful 15 | . 6 9 Failed 9 | . 6 3 Catastrophic 2 | . 1 1 Database Lockouts . | . . . Manual 5 | . 2 3 Terminals 24 | . 12 12 Fabricators . | . . . Repair Stations . | . . . Recycling Units . | . . . Scanalyzers . | . . . Garrison Access . | . . . Terminal Hacks 13 | . 6 7 Record 3 | . . 3 Robot Analysis 1 | . . 1 Prototype ID Bank 3 | . 2 1 Branch Access Points 1 | . 1 . Alert Level 1 | . 1 . Unreport Threat 1 | . 1 . Hauler Manifests 1 | . 1 . Zone Layout 2 | . . 2 Fabricator Hacks . | . . . Repair Station Hacks . | . . . Recycling Unit Hacks . | . . . Scanalyzer . | . . . Garrison Access Hacks . | . . . Unauthorized Hacks 2 | . . 2 Terminals 2 | . . 2 Botnet 2 | . . 2 Fabricators . | . . . Repair Stations . | . . . Recycling Units . | . . . Scanalyzers . | . . . Garrison Access . | . . . Data Cores Recovered . | . . . Used . | . . . Hacking Detections 5 | . 2 3 Full Trace Events 1 | . . 1 Feedback Events . | . . . Feedback Blocked . | . . . Robot Schematics Acquired . | . . . Robots Built . | . . . Matter . | . . . Time . | . . . Total Robot Build Rating . | . . . Part Schematics Acquired . | . . . Parts Built . | . . . Matter . | . . . Time . | . . . Total Part Build Rating . | . . . Parts Repaired . | . . . Time . | . . . Parts Recycled . | . . . Recycled Matter . | . . . Retrieved Matter . | . . . Retrieved Components . | . . . Parts Scanalyzed . | . . . Part Schematics Acquired . | . . . Parts Damaged . | . . . Bothacking | -11 -10 -9 ------------ Run | Scr Mat Mat Used RIF Installer . | . . . Robots Hacked . | . . . Non-combat . | . . . Combat . | . . . Robot Hacks Applied . | . . . Relay Couplers Released . | . . . Robots Rewired . | . . . Allies Hacked . | . . . Hacks Repelled . | . . . Allies | -11 -10 -9 -------- Run | Scr Mat Mat Total Allies . | . . . Largest Group . | . . . Highest-Rated Group . | . . . Highest-Rated Ally . | . . . Total Orders . | . . . Ally Attacks . | . . . Total Damage . | . . . Kills . | . . . Allies Corrupted . | . . . Allies Melted . | . . . Intel | -11 -10 -9 ------- Run | Scr Mat Mat Robot Analysis Total 1 | . . 1 Derelict Logs Recovered . | . . . Drone Launches . | . . . Drone Recoveries . | . . . Exploration | -11 -10 -9 ------------- Run | Scr Mat Mat Turns Passed 662 | 46 148 468 Spaces Moved 409 | 36 112 261 Core 1 | 1 . . Treads . | . . . Legs . | . . . Wheels 408 | 35 112 261 Hover . | . . . Flight . | . . . Fastest Speed 50 | 50 100 80 Average Speed 99 | 98 100 99 Slowest Speed 110 | 100 100 110 Overloaded Moves . | . . . Propulsion Burnouts . | . . . Robots Hopped . | . . . Cave-ins Triggered . | . . . Exploration Rate (%) 21 | 4 36 24 Regions Visited 2 Branch Regions . Pre-discovered Areas . | . . . Known Exits Taken . | . . . Unknown Exits Taken 2 | 1 1 . Scrap Searched . | . . . Spaces Dug . | . . . Terrain Destroyed . | . . . Melee . | . . . Projectile . | . . . AOE . | . . . Terrain Rammed . | . . . Walls Destroyed . | . . . Machines Disabled . | . . . Actions | -11 -10 -9 --------- Run | Scr Mat Mat Total 568 | 43 131 394 Wait 62 | . 1 61 Move 407 | 35 111 261 Hop . | . . . Pick Up 16 | 2 7 7 Fast Attach 13 | 6 1 6 Attach 6 | . 2 4 Detach . | . . . Swap 4 | . . 4 Drop 7 | . 1 6 Fire 22 | . 8 14 Melee 31 | . . 31 Ram . | . . . Kick . | . . . Crush . | . . . Escape Stasis . | . . . Rewire . | . . . Trap . | . . . Miscellaneous . | . . . Route ------- -11/Scrapyard -10/Materials (discovered 3 exits: *Mat / Min x2) -9/Materials (discovered 1 exit: [*Mat]) History --------- Turn | Location | Event 2 | -11/Scrapyard | Met Revision 17 14 | -11/Scrapyard | Discovered new exit (range 15) 47 | -11/Scrapyard | Entered Materials 130 | -10/Materials | Discovered new exit (range 13) 180 | -10/Materials | Identified exit to Mines 195 | -10/Materials | Entered another Materials area 195 | -9/Materials | Evolved 2 slots: Utility x2 310 | -9/Materials | Build established: Mutant 499 | -9/Materials | Lost 3 parts (1p1n1w) 639 | -9/Materials | Discovered new exit (range 12) 648 | -9/Materials | Core integrity fell below 50% 660 | -9/Materials | Core integrity fell below 20% 663 | -9/Materials | Destroyed by G-34 Mercenary with Small Laser Last Messages --------------- 00639_ S-10 Pest destroyed. 00639_ W-16 Scout destroyed. 00639_ K-01 Serf collects debris. 00641_ Imp. Terrain Scanner destroyed. 00642_ K-01 Serf collects debris. 00647_ Wheel destroyed. 00649_ K-01 Serf collects debris. 00650_ U-05 Engineer lays Concrete. 00650_ Y-45 Defender misfires. 00651_ U-05 Engineer lays Concrete. 00652_ Wheel destroyed. 00652_ Structural Scanner destroyed. 00653_ K-01 Serf collects debris. 00653_ U-05 Engineer lays Concrete. 00657_ R-06 Scavenger collects Lgt. Assault Rifle. 00658_ K-01 Serf collects debris. 00658_ U-05 Engineer lays Concrete. 00660_ R-06 Scavenger collects Lgt. Ion Engine. 00661_ K-01 Serf collects debris. 00662_ U-05 Engineer lays Concrete. Map ----- +----------------------------------------------------+ | ????????????????????????????????????????????????? | | ????????????????????????????????????????????????? | | ????????????????????????????????????????????????? | | ????????????????????????????????????????????????? | | ????????????????????????????????????????????????? | | ????????????????????????????????????????????????? | | ????????????????????????????????????????????????? | | ????????????????????????????????????????????????? | | ????????????????????????????????????????????????? | | ????????????????????????????????????????????????? | | ???????????????????????? ???????????????????????? | | ????????????????????????#?????#?????????????????? | | ????????????????????????????????????????????????? | | ???????????????????????????????#????????????????? | | ?????????????? ??????????????????"??????????????? | | ???????????????????????"????????????????????????? | | ????????????????????????????????????????????????? | | ????????????????????????????????????????????????? | | ???????????????# ???????????????????????????????? | | ???????????????# ###########+###????????????????? | | ???????????????# ###+#####????????? | | ???????????????# #?????????? | | ???????????????# [* < #?????????? | | ??????????????????# =u* ! ?????????????? | | ???????????????????# == = !%#????????#???????? | | ???????????????????# @* *=#????????????????? | | ?????????????????###w rl #????????????????? | | ?????????????????# k #? ??????????????? | | ?????????????????# [ #? ??????????????? | | ?????????????????# gu Y #????????????????? | | ????????????# ^ ###### #????????#???????? | | ???????? ???# ^ ??#??# #????????????????? | | ????????????# k ??#???# #"??? ???????????? | | ???????????## ^ ? ????## #? ?????????????? | | ???????? ??## ^???#????# #????????????????? | | ????????????######?######## #???#????????????? | | ????????????# """ # #????????????????? | | ?????????##?# """ + = ##??#????????????? | | ??????????#?# """ #!% #????????????????? | | ????????????# ??#![=##########?#?????????????? | | ????????????# ??? #[ #????????????????????????? | | ????????????#??????#[[ #????????????????????????? | | ?????????##?##?????#%[!#?????#??#???????????????? | | ????????#######????#[[ #?###?#?#????????????????? | | ????????# ???#= #??????????#?????????????? | | ????????? ?## ###???#??##??????#???????? | | ??????????? # #????????#??????????????? | | ???????????"" """ # % #??#??#??#??#???????????? | | ????????? ?"" """ + #########???????????????? | | ???????????"" """ # # """ #?????????#?????? | +----------------------------------------------------+ Best States ------------- Heat Dissipation 28 Energy Generation 12 Energy Capacity 265 Matter Stores 300 Matter Capacity 300 Sight Range 16 Robot Scan Range 13 Terrain Scan Range 16 Terrain Scan Density 10 Evasion (%) 42 Targeting Accuracy 5 Item Schematics ----------------- None Robot Schematics ------------------ None Fabricated ------------ Nothing Alien Tech Used ----------------- None Achievements -------------- None Challenges ------------ None Game ------ Seed PlasmaShrapnelFemtoactuators Manual? 0 Play Time 00:14:28 Cumulative 6.1 hours Start 2021.06.30 @ 21:14:07 End 2021.06.30 @ 21:26:26 Sessions 1 Manual Loads 0 Difficulty Rogue Special Mode None Game No. 8 Rogue 8 Adventurer 0 Explorer 0 Win Type - Total 0 Types 0/0/0/0/0/0/0/0/0 Lore% 18 Gallery% 15 Achievement% 16 Wizard Run 0 Options --------- ASCII 0 Keyboard 0 Movement Mouse Keybinds 0 Fullscreen 2 Font 18/SmallcapsGlow Map View 76x50 Tactical HUD 1 Map Filters NONE Filters NONE Steam 1 RUN: 508b21b9-814d-450e-ad66-b8e4aece16cd